fUSD/lending_fUSD_20240119
["ID","MTS","AMOUNT","RATE_DAILY","PERIOD"]
[312204810,1705684376924,-500.0,0.00033082,7]
[312204811,1705684376934,-500.0,0.00033082,10]
[312204812,1705684376943,-1507.74683078,0.00033111,10]
[312204813,1705684376953,-168.04,0.00033144,2]
[312204814,1705684376963,-1098.71,0.0003315,2]
[312204815,1705684376972,-750.0,0.0003315,7]
[312204816,1705684376981,-150.0,0.00033165,2]
[312204817,1705684376991,-202.0,0.00033196,22]
[312204818,1705684377001,-2053.0,0.0003325,5]
[312204819,1705684377010,-454.45494565,0.00033287,7]
[312204820,1705684377019,-1997.9,0.0003331,2]
[312204821,1705684377029,-154.93488524,0.00033331,7]
[312204822,1705684377039,-161.24326407,0.00033423,7]
[312204823,1705684377048,-1098.71,0.00033424,2]
[312204824,1705684377058,-152.0,0.00033424,4]
[312204825,1705684377068,-500.0,0.00033425,7]
[312204826,1705684377078,-10851.15,0.00033425,2]
[312204827,1705684377091,-379.82228611,0.00033437,7]
[312204828,1705684377100,-166.32,0.00033453,2]
[312204829,1705684377109,-160.36,0.00033453,2]
[312204830,1705684377119,-322.75439056,0.00033454,3]
[312204831,1705684377129,-153.25895078,0.00033456,7]
[312204832,1705684377138,-156.66666666,0.00033459,7]
[312204833,1705684377147,-161.24326407,0.0003346,7]
[312204834,1705684377156,-4025.0,0.00033463,7]
[312204835,1705684377167,-153.25895078,0.00033495,7]
[312204836,1705684377176,-489.71526024,0.000335,4]
[312204837,1705684377186,-392.67768067,0.000335,2]
[312204838,1705684377195,-4014.58322104,0.000335,7]
[312204839,1705684377205,-176.0,0.000335,22]
[312204840,1705684377215,-6740.23,0.000335,2]
[312204841,1705684377224,-6740.23,0.000335,2]
[312204842,1705684377234,-6740.23,0.000335,2]
[312204843,1705684377244,-6740.23,0.000335,2]
[312204844,1705684377254,-6740.23,0.000335,2]
[312204845,1705684377264,-6740.23,0.000335,2]
[312204846,1705684377273,-6740.23,0.000335,2]
[312204847,1705684377282,-6740.23,0.000335,2]
[312204848,1705684377291,-6740.23,0.000335,2]
[312204849,1705684377300,-6740.23,0.000335,2]
[312204850,1705684377310,-6740.23,0.000335,2]
[312204851,1705684377319,-6740.23,0.000335,2]
[312204852,1705684377332,-6740.23,0.000335,2]
[312204853,1705684377341,-6740.23,0.000335,2]
[312204854,1705684377351,-6740.23,0.000335,2]
[312204855,1705684377361,-6740.23,0.000335,2]
[312204856,1705684377371,-6740.23,0.000335,2]
[312204857,1705684377380,-6740.23,0.000335,2]
[312204858,1705684377389,-6740.23,0.000335,2]
[312204859,1705684377399,-6740.23,0.000335,2]
[312204860,1705684377408,-293.05971916,0.00033505,7]
[312204861,1705684377417,-153.25895078,0.00033513,7]
[312204862,1705684377426,-152.86441716,0.00033529,7]
[312204863,1705684377435,-212.0,0.0003355,2]
[312204864,1705684377444,-237.0,0.0003355,2]
[312204865,1705684377453,-203.0,0.0003355,2]
[312204866,1705684377462,-204.0,0.0003355,2]
[312204867,1705684377471,-206.0,0.0003355,2]
[312204868,1705684377481,-293.05971916,0.00033566,7]
[312204869,1705684377490,-2000.0,0.000336,2]
[312204870,1705684377499,-500.0,0.0003363,10]
[312204871,1705684377508,-150.0,0.00033671,120]
[312204872,1705684377518,-5000.0,0.00033684,11]
[312204873,1705684377527,-1098.71,0.00033698,2]
[312204874,1705684377536,-167.38384523,0.00033698,7]
[312204875,1705684377545,-293.05971916,0.00033702,7]
[312204876,1705684377554,-159.19301062,0.00033705,7]
[312204877,1705684377563,-157.91012647,0.00033761,7]
[312204878,1705684377575,-799.55,0.00033779,2]
[312204879,1705684377584,-153.84,0.0003379,2]
[312204880,1705684377593,-162.19255693,0.00033798,7]
[312204881,1705684377602,-1104.8185278,0.000338,60]
[312204882,1705684377611,-158.0,0.000338,2]
[312204883,1705684377620,-15718.202006,0.000338,20]
[312204884,1705684377630,-157.91012647,0.0003383,7]
[312204885,1705684377638,-152.06639062,0.00033844,7]
[312204886,1705684377647,-153.25895078,0.00033859,7]
[312204887,1705684377657,-150.0,0.00033886,2]
[312204888,1705684377666,-1023.0099008,0.00033887,6]
[312204889,1705684377675,-156.66666666,0.00033924,7]
[312204890,1705684377684,-379.82228611,0.00033924,7]
[312204891,1705684377693,-379.82228611,0.0003395,7]
[312204892,1705684377702,-1098.71,0.00033972,2]
[312204893,1705684377711,-154.1002653,0.00033993,7]
[312204894,1705684377721,-157.26918469,0.00033997,7]
[312204895,1705684377730,-236.83819149,0.00033998,4]
[312204896,1705684377739,-4719.95810089,0.00033999,2]
[312204897,1705684377748,-1839.05780797,0.00033999,2]
[312204898,1705684377758,-7476.87578141,0.00033999,2]
[312204899,1705684377767,-4338.02976665,0.00033999,2]
[312204900,1705684377777,-100000.0,0.00034,4]
[312204901,1705684377786,-1000.0,0.00034,4]
[312204902,1705684377796,-500.0,0.00034,2]
[312204903,1705684377805,-506.22007375,0.00034,4]
[312204904,1705684377815,-383654.04361235,0.00034,2]
[312204905,1705684378452,-299.40204899,0.00021917,2]
[312204906,1705684378465,-200.59795101,0.00021917,2]
[312204907,1705684378475,-500.0,0.00021917,2]
[312204908,1705684378484,-500.0,0.00021917,2]
[312204909,1705684378494,-500.0,0.00022191,2]
[312204910,1705684378504,-500.0,0.00022465,2]
[312204911,1705684378513,-500.0,0.00022739,2]
[312204912,1705684378523,-200.88840202,0.000229,2]
[312204913,1705684378533,-202.40098187,0.000229,2]
[312204914,1705684378542,-131.87928841,0.00023013,2]
[312204915,1705684378555,-368.12071159,0.00023013,2]
[312204916,1705684378564,-75.32248811,0.00023287,2]
[312204917,1705684378576,-424.67751189,0.00023287,2]
[312204918,1705684378585,-906.51,0.00024383,2]
[312204919,1705684378595,-906.51,0.00024657,2]
[312204920,1705684378604,-906.51,0.00024931,2]
[312204921,1705684378613,-640.30967306,0.00025205,2]
[312204922,1705684378625,-266.20032694,0.00025205,2]
[312204923,1705684378634,-906.51,0.00025479,2]
[312204924,1705684378643,-783.73008386,0.00027397,7]
[312204925,1705684378654,-2295.84122358,0.00027397,7]
[312204926,1705684378665,-699.88661528,0.00027397,7]
[312204927,1705684379434,-165.80791648,0.000219,2]
[312204928,1705684379444,-111.98227056,0.00021916,2]
[312204929,1705684379462,-173.25884816,0.00021916,2]
[312204930,1705684379471,-500.0,0.00021917,2]
[312204931,1705684379482,-500.0,0.00021917,2]
[312204932,1705684379492,-500.0,0.00021917,2]
[312204933,1705684379502,-500.0,0.00022191,2]
[312204934,1705684379511,-500.0,0.00022191,2]
[312204935,1705684379521,-284.120711,0.00022465,7]
[312204936,1705684379531,-500.0,0.00022465,2]
[312204937,1705684379541,-234.57,0.00022465,2]
[312204938,1705684379551,-284.120711,0.00022739,7]
[312204939,1705684379561,-327.3,0.00022739,2]
[312204940,1705684379571,-657.88226915,0.000229,2]
[312204941,1705684379583,-202.40098117,0.000229,2]
[312204942,1705684379594,-202.40098117,0.000229,2]
[312204943,1705684379605,-202.40098117,0.000229,2]
[312204944,1705684379615,-202.40098117,0.000229,2]
[312204945,1705684379626,-284.120711,0.00023,7]
[312204946,1705684379636,-284.120711,0.00023,7]
[312204947,1705684379646,-284.120711,0.00023287,7]
[312204948,1705684379657,-236.87321897,0.000235,7]
[312204949,1705684379672,-47.24749203,0.000235,7]
[312204950,1705684379683,-500.0,0.00023561,2]
[312204951,1705684379693,-500.0,0.00023835,2]
[312204952,1705684379703,-284.120711,0.00023835,7]
[312204953,1705684379714,-500.0,0.00024109,2]
[312204954,1705684379724,-500.0,0.00024383,2]
[312204955,1705684379734,-284.120711,0.00024383,7]
[312204956,1705684379743,-150.0,0.00024385,2]
[312204957,1705684379755,-151.70631307,0.00024601,2]
[312204958,1705684379765,-284.120711,0.00024657,7]
[312204959,1705684379776,-500.0,0.00024657,2]
[312204960,1705684379786,-500.0,0.00024931,2]
[312204961,1705684379797,-284.120711,0.00025205,7]
[312204962,1705684379807,-500.0,0.00025205,2]
[312204963,1705684379817,-500.0,0.00025479,2]
[312204964,1705684379831,-906.51,0.00025753,2]
[312204965,1705684379841,-500.0,0.00025753,2]
[312204966,1705684379853,-683.05335147,0.00026027,2]
[312204967,1705684379875,-284.120711,0.00022465,7]
[312204968,1705684379886,-223.45664853,0.00026027,2]
[312204969,1705684379896,-14.15922703,0.00026027,2]
[312204970,1705684379913,-202.40098117,0.000229,2]
[312204971,1705684379923,-485.84077297,0.00026027,2]
[312204972,1705684379933,-523.82879592,0.00026301,2]
[312204973,1705684379945,-382.68120408,0.00026301,2]
[312204974,1705684379955,-303.11879568,0.00026575,2]
[312204975,1705684379968,-603.39120432,0.00026575,2]
[312204976,1705684379978,-80.51879615,0.00026849,2]
[312204977,1705684379991,-825.99120385,0.00026849,2]
[312204978,1705684380001,-906.51,0.00027123,2]
[312204979,1705684380012,-289.74879615,0.00027397,7]
[312204980,1705684380024,-444.57620297,0.00027397,7]
[312204981,1705684380037,-1218.99999998,0.00027397,7]
[312204982,1705684381416,1033.91,0.00018624,2]
[312204983,1705684382989,206.0,0.00018764,2]
[312204984,1705684383342,12412.35820143,0.0001865,2]
[312204985,1705684386568,2526.70299999,0.00018654,2]
[312204986,1705684388838,17860.49155408,0.00018624,2]
[312204987,1705684388865,6039.50844592,0.00018624,2]
[312204988,1705684390000,407.08023688,0.00018623,2]
[312204989,1705684394668,204.0,0.00018764,2]
[312204990,1705684395178,238.63,0.00018624,2]
[312204991,1705684395818,250.0,0.00018624,2]
[312204992,1705684414568,203.0,0.00017764,2]
[312204993,1705684565092,1065.14396169,0.0001865,2]
[312204994,1705685068158,494.81,0.00018727,2]
[312204995,1705685133766,203.0,0.00018781,2]
[312204996,1705685194304,200.0,0.00018687,2]
[312205015,1705685434330,-384.3215283,0.00019992,2]
[312205016,1705685434340,-159.88850779,0.00019993,2]
[312205017,1705685434349,-1752.31463891,0.00019996,2]
[312205018,1705685434394,-841.96380919,0.00019996,2]
[312205019,1705685434408,-596.98552726,0.00019996,2]
[312205020,1705685434420,-320.74418143,0.00019997,2]
[312205021,1705685434469,-1270.66,0.00019997,2]
[312205022,1705685434483,-4912.59581857,0.00019997,2]
[312205023,1705685434493,-176.28372566,0.0002,2]
[312205024,1705685434504,-2476.20957475,0.0002,2]
[312205025,1705685434513,-180.82762916,0.0002,2]
[312205026,1705685434524,-155.0,0.0002,2]
[312205027,1705685434534,-722.5,0.0002,2]
[312205028,1705685434543,-281.28534164,0.00020406,2]
[312205029,1705685434552,-247.18324374,0.00020407,2]
[312205030,1705685434561,-250.0,0.00020411,2]
[312205031,1705685434571,-3903.5,0.00020516,2]
[312205032,1705685434580,-170.75,0.0002052,2]
[312205033,1705685434591,-2000.0,0.00020548,2]
[312205034,1705685434601,-150.81,0.00020564,2]
[312205035,1705685434612,-1422.34,0.00020564,2]
[312205036,1705685434622,-499.99,0.0002068,2]
[312205037,1705685434632,-150.81,0.00020718,2]
[312205038,1705685434642,-160.0,0.00020812,2]
[312205039,1705685434652,-1772.31981003,0.00020818,7]
[312205040,1705685434661,-711.9,0.00020818,2]
[312205042,1705685434671,-694.09,0.00020818,2]
[312205044,1705685434680,-293.08,0.00020818,2]
[312205045,1705685434690,-874.43633455,0.00020819,2]
[312205046,1705685434699,-156.32,0.00020835,2]
[312205047,1705685434711,-159.8,0.00020835,2]
[312205048,1705685434720,-150.81,0.00020871,2]
[312205049,1705685434731,-352.54,0.00020916,2]
[312205050,1705685434741,-494.81,0.00020991,2]
[312205051,1705685434750,-733.52716987,0.00021,2]
[312205052,1705685434759,-150.81,0.00021024,2]
[312205053,1705685434780,-150.81,0.00021177,2]
[312205054,1705685434790,-156.32,0.00021252,2]
[312205055,1705685434799,-150.81,0.0002133,2]
[312205056,1705685434808,-524.52,0.0002137,2]
[312205057,1705685434818,-150.81,0.00021483,2]
[312205058,1705685434829,-473.48999899,0.00021615,2]
[312205059,1705685434839,-2061.8238,0.00021616,2]
[312205060,1705685434848,-473.8529,0.00021616,2]
[312205061,1705685434858,-467978.1657,0.00021616,2]
[312205062,1705685434868,-251.2161,0.00021616,2]
[312205063,1705685434879,-150.81,0.00021636,2]
[312205064,1705685434888,-156.32,0.00021669,2]
[312205065,1705685434897,-4833.65107293,0.00021695,2]
[312205066,1705685434907,-87972.8706,0.00021716,2]
[312205067,1705685434916,-155.51974414,0.00021805,2]
[312205068,1705685434926,-300.0,0.00021815,2]
[312205069,1705685434935,-2500.0,0.00021816,2]
[312205070,1705685434945,-872.46585509,0.00021817,2]
[312205071,1705685434955,-171.94541592,0.00021817,2]
[312205072,1705685434964,-407.55455685,0.00021899,2]
[312205073,1705685434974,-183.04264597,0.00021899,2]
[312205074,1705685434984,-326.44761379,0.00021899,2]
[312205075,1705685434996,-300.0,0.000219,7]
[312205076,1705685435006,-250.0,0.000219,2]
[312205077,1705685435016,-151.99059018,0.000219,2]
[312205078,1705685435025,-449.78012718,0.00021914,2]
[312205079,1705685435035,-232.43216373,0.00021914,2]
[312205080,1705685435046,-9852.18909556,0.00021914,2]
[312205081,1705685435056,-4634.794,0.00021914,2]
[312205082,1705685435065,-1200.37576921,0.00021915,2]
[312205083,1705685435075,-535.24053213,0.00021915,2]
[312205084,1705685435085,-426.18620914,0.00021915,2]
[312205085,1705685435094,-275.24311985,0.00021915,2]
[312205086,1705685435104,-4751.47028498,0.00021916,2]
[312205087,1705685435113,-304.25313191,0.00021916,2]
[312205088,1705685435123,-4785.03700035,0.00021916,2]
[312205089,1705685435134,-607.64925513,0.00021916,2]
[312205090,1705685435144,-660411.39224093,0.00021916,2]
[312205091,1705685435153,-2510.46963347,0.00021917,2]
[312205092,1705685435163,-392.05,0.00021918,3]
[312205093,1705685435173,-203.0,0.00021952,6]
[312205094,1705685435183,-151.9905901,0.00021967,2]
[312205095,1705685435193,-550.0,0.00022,3]
[312205096,1705685435203,-1000.0,0.00022013,2]
[312205097,1705685435213,-250.0,0.00022013,2]
[312205098,1705685435223,-196.88,0.00022013,2]
[312205099,1705685435233,-1048.65,0.00022013,2]
[312205100,1705685435246,-156.32,0.00022085,2]
[312205101,1705685435257,-732.88,0.00022191,2]
[312205102,1705685435266,-151.9905901,0.00022418,2]
[312205103,1705685435280,-513.66,0.00022461,2]
[312205104,1705685435290,-156.32,0.00022502,2]
[312205105,1705685435299,-180.0,0.00022603,2]
[312205106,1705685435309,-178.11604509,0.0002261,2]
[312205107,1705685435319,-155.0,0.00022701,2]
[312205108,1705685435329,-731.16,0.00022739,2]
[312205109,1705685435339,-155.0,0.00022766,2]
[312205110,1705685435348,-160.0,0.0002277,2]
[312205111,1705685435358,-5800.0,0.00022781,2]
[312205112,1705685435367,-5800.0,0.0002279,2]
[312205113,1705685435377,-5800.0,0.00022798,2]
[312205114,1705685435386,-5800.0,0.00022807,2]
[312205115,1705685435395,-5800.0,0.00022815,2]
[312205116,1705685435405,-5800.0,0.00022824,2]
[312205117,1705685435415,-5800.0,0.00022832,2]
[312205118,1705685435424,-5800.0,0.00022841,2]
[312205119,1705685435436,-5800.0,0.00022849,2]
[312205120,1705685435446,-5800.0,0.00022858,2]
[312205121,1705685435455,-5800.0,0.00022866,2]
[312205122,1705685435465,-151.9905901,0.00022868,2]
[312205123,1705685435475,-5800.0,0.00022875,2]
[312205124,1705685435484,-5800.0,0.00022883,2]
[312205125,1705685435495,-5800.0,0.00022892,2]
[312205126,1705685435504,-5800.0,0.000229,2]
[312205127,1705685435515,-600.0,0.000229,8]
[312205128,1705685435524,-156.32,0.00022919,2]
[312205129,1705685435534,-1008.11171313,0.00023,20]
[312205130,1705685435543,-182.46,0.00023,2]
[312205131,1705685435552,-872.46585506,0.00023137,2]
[312205132,1705685435562,-494.81,0.00023255,2]
[312205133,1705685435571,-151.9905901,0.00023319,2]
[312205134,1705685435580,-156.32,0.00023336,2]
[312205135,1705685435590,-188.9075829,0.00023361,2]
[312205136,1705685435599,-4007.22410856,0.00023361,2]
[312205137,1705685435608,-1277.11849933,0.00023361,2]
[312205138,1705685435621,-416.886,0.00023461,2]
[312205139,1705685435631,-452.8908,0.00023461,2]
[312205140,1705685435640,-99994.09415456,0.00023461,2]
[312205141,1705685435672,-4236.17914182,0.00023461,2]
[312205142,1705685435687,-1177.7496159,0.00023461,2]
[312205143,1705685435698,-1165.618,0.00023461,2]
[312205152,1705685439938,-24765.42404131,0.00023461,2]
[312205155,1705685439949,-1059.53492,0.00023461,2]
[312205161,1705685440001,-1429.67210836,0.00023461,2]
[312205169,1705685440129,-7978.94377898,0.00023461,2]
[312205170,1705685440248,-3271.91355317,0.00023461,2]
[312205171,1705685440260,-516.29846559,0.00023461,2]
[312205172,1705685440312,-99404.57222031,0.00023461,2]
[312205189,1705685440562,-489.6982,0.00023461,2]
[312205191,1705685440572,-188.90758242,0.00023569,2]
[312205193,1705685440581,-152.33044919,0.00023631,2]
[312205196,1705685440590,-151.9905901,0.0002377,2]
[312205198,1705685440599,-188.90758242,0.00023778,2]
[312205201,1705685440609,-204.54972174,0.00023835,2]
[312205204,1705685440618,-718.42,0.00023835,2]
[312205208,1705685440629,-300.0,0.0002394,10]
[312205211,1705685440639,-188.90758242,0.00023986,2]
[312205213,1705685440647,-15000.0,0.0002399,2]
[312205215,1705685440657,-600.0,0.00024,3]
[312205217,1705685440666,-386.10759257,0.00024,2]
[312205219,1705685440675,-828.38848717,0.00024,2]
[312205221,1705685440684,-319.0,0.00024045,2]
[312205223,1705685440693,-508.704,0.00024045,2]
[312205225,1705685440702,-257.668,0.00024045,2]
[312205227,1705685440711,-252.942,0.00024045,2]
[312205229,1705685440720,-405.58,0.00024045,2]
[312205231,1705685440729,-5438.874,0.00024045,2]
[312205233,1705685440738,-2274.0,0.00024045,2]
[312205235,1705685440749,-449.0,0.00024045,2]
[312205237,1705685440758,-946.0,0.00024045,2]
[312205239,1705685440767,-836.0,0.00024045,2]
[312205241,1705685440775,-214.0,0.00024045,2]
[312205243,1705685440784,-231.743,0.00024045,2]
[312205245,1705685440793,-188.90758242,0.00024194,2]
[312205247,1705685440802,-151.9905901,0.00024221,2]
[312205249,1705685440812,-167.0,0.00024297,2]
[312205251,1705685440821,-188.90758242,0.00024403,2]
[312205253,1705685440830,-872.46585506,0.00024457,2]
[312205255,1705685440839,-188.90758242,0.00024611,2]
[312205256,1705685440848,-150.0,0.00024631,2]
[312205258,1705685440858,-590634.50236614,0.00024657,3]
[312205260,1705685440867,-500.0,0.00024657,2]
[312205262,1705685440876,-500.0,0.00024657,2]
[312205264,1705685440884,-500.0,0.00024657,2]
[312205266,1705685440893,-500.0,0.00024657,2]
[312205268,1705685440903,-500.0,0.00024657,2]
[312205270,1705685440912,-500.0,0.00024657,2]
[312205272,1705685440921,-500.0,0.00024657,2]
[312205274,1705685440930,-500.0,0.00024657,2]
[312205276,1705685440939,-500.0,0.00024657,2]
[312205278,1705685440949,-500.0,0.00024657,2]
[312205281,1705685440958,-500.0,0.00024657,2]
[312205282,1705685440967,-500.0,0.00024657,2]
[312205284,1705685440977,-500.0,0.00024657,2]
[312205287,1705685440987,-500.0,0.00024657,2]
[312205289,1705685440999,-399.4049568,0.00024657,2]
[312205291,1705685441008,-500.0,0.00024657,2]
[312205292,1705685441016,-500.0,0.00024657,2]
[312205295,1705685441026,-500.0,0.00024657,2]
[312205297,1705685441036,-537.13,0.00024657,2]
[312205298,1705685441045,-500.0,0.00024657,2]
[312205301,1705685441055,-174.8437244,0.00024657,2]
[312205303,1705685441065,-500.0,0.00024657,2]
[312205305,1705685441074,-500.0,0.00024657,2]
[312205307,1705685441084,-500.0,0.00024657,2]
[312205309,1705685441093,-500.0,0.00024657,2]
[312205311,1705685441103,-500.0,0.00024657,2]
[312205313,1705685441113,-500.0,0.00024657,2]
[312205315,1705685441122,-500.0,0.00024657,2]
[312205316,1705685441131,-500.0,0.00024657,2]
[312205318,1705685441140,-508.37475352,0.00024657,2]
[312205321,1705685441150,-500.0,0.00024657,2]
[312205323,1705685441159,-500.0,0.00024657,2]
[312205325,1705685441169,-500.0,0.00024657,2]
[312205327,1705685441178,-500.0,0.00024657,2]
[312205329,1705685441188,-500.0,0.00024657,2]
[312205331,1705685441197,-500.0,0.00024657,2]
[312205333,1705685441206,-500.0,0.00024657,2]
[312205335,1705685441216,-500.0,0.00024657,2]
[312205337,1705685441225,-500.0,0.00024657,2]
[312205338,1705685441233,-500.0,0.00024657,2]
[312205340,1705685441245,-500.0,0.00024657,2]
[312205342,1705685441254,-500.0,0.00024657,2]
[312205344,1705685441263,-500.0,0.00024657,2]
[312205346,1705685441272,-500.0,0.00024657,2]
[312205349,1705685441281,-500.0,0.00024657,2]
[312205351,1705685441290,-500.0,0.00024657,2]
[312205353,1705685441300,-500.0,0.00024657,2]
[312205355,1705685441309,-1000.0,0.00024657,2]
[312205357,1705685441318,-500.0,0.00024657,2]
[312205359,1705685441327,-500.0,0.00024657,2]
[312205361,1705685441336,-500.0,0.00024657,2]
[312205363,1705685441346,-500.0,0.00024657,2]
[312205365,1705685441355,-500.0,0.00024657,2]
[312205367,1705685441364,-500.0,0.00024657,2]
[312205369,1705685441373,-500.0,0.00024657,2]
[312205371,1705685441382,-500.0,0.00024657,2]
[312205373,1705685441392,-300.0,0.00024657,2]
[312205375,1705685441401,-500.0,0.00024657,2]
[312205377,1705685441410,-500.0,0.00024657,2]
[312205379,1705685441419,-500.0,0.00024657,2]
[312205381,1705685441428,-500.0,0.00024657,2]
[312205383,1705685441437,-500.0,0.00024657,2]
[312205385,1705685441450,-500.0,0.00024657,2]
[312205387,1705685441459,-500.0,0.00024657,2]
[312205389,1705685441468,-500.0,0.00024657,2]
[312205391,1705685441477,-500.0,0.00024657,2]
[312205393,1705685441487,-500.0,0.00024657,2]
[312205395,1705685441499,-585.76,0.00024657,2]
[312205397,1705685441508,-200.15964,0.00024657,2]
[312205399,1705685441517,-530.48,0.00024657,2]
[312205402,1705685441529,-500.0,0.00024657,2]
[312205404,1705685441538,-500.0,0.00024657,2]
[312205406,1705685441547,-500.0,0.00024657,2]
[312205408,1705685441556,-500.0,0.00024657,2]
[312205410,1705685441565,-500.0,0.00024657,2]
[312205412,1705685441574,-500.0,0.00024657,2]
[312205414,1705685441583,-500.0,0.00024657,2]
[312205416,1705685441592,-500.0,0.00024657,2]
[312205417,1705685441601,-500.0,0.00024657,2]
[312205419,1705685441611,-500.0,0.00024657,2]
[312205421,1705685441621,-591.46,0.00024657,2]
[312205424,1705685441631,-500.0,0.00024657,2]
[312205426,1705685441641,-279.03,0.00024657,2]
[312205428,1705685441650,-500.0,0.00024657,2]
[312205429,1705685441660,-500.0,0.00024657,2]
[312205432,1705685441669,-500.0,0.00024657,2]
[312205433,1705685441678,-500.0,0.00024657,2]
[312205436,1705685441687,-500.0,0.00024657,2]
[312205437,1705685441696,-500.0,0.00024657,2]
[312205439,1705685441705,-330.00222273,0.00024657,2]
[312205442,1705685441714,-340.22582021,0.00024657,2]
[312205444,1705685441723,-500.0,0.00024657,2]
[312205446,1705685441733,-500.0,0.00024657,2]
[312205448,1705685441743,-333.18173879,0.00024657,2]
[312205450,1705685441751,-544.14,0.00024657,2]
[312205452,1705685441761,-500.0,0.00024657,2]
[312205454,1705685441770,-620.61905636,0.00024657,2]
[312205456,1705685441780,-500.0,0.00024657,2]
[312205458,1705685441789,-500.0,0.00024657,2]
[312205460,1705685441798,-500.0,0.00024657,2]
[312205462,1705685441807,-500.0,0.00024657,2]
[312205464,1705685441816,-500.0,0.00024657,2]
[312205466,1705685441825,-500.0,0.00024657,2]
[312205468,1705685441837,-500.0,0.00024657,2]
[312205470,1705685441845,-500.0,0.00024657,2]
[312205472,1705685441855,-500.0,0.00024657,2]
[312205474,1705685441866,-500.0,0.00024657,2]
[312205476,1705685441875,-534.50184495,0.00024657,2]
[312205478,1705685441886,-500.0,0.00024657,2]
[312205480,1705685441895,-500.0,0.00024657,2]
[312205481,1705685441904,-500.0,0.00024657,2]
[312205484,1705685441914,-500.0,0.00024657,2]
[312205486,1705685441923,-500.0,0.00024657,2]
[312205487,1705685441932,-500.0,0.00024657,2]
[312205489,1705685441941,-500.0,0.00024657,2]
[312205492,1705685441951,-500.0,0.00024657,2]
[312205494,1705685441961,-500.0,0.00024657,2]
[312205496,1705685441971,-500.0,0.00024657,2]
[312205498,1705685441980,-500.0,0.00024657,2]
[312205500,1705685441989,-500.0,0.00024657,2]
[312205502,1705685441999,-500.0,0.00024657,2]
[312205504,1705685442008,-500.0,0.00024657,2]
[312205506,1705685442018,-500.0,0.00024657,2]
[312205508,1705685442027,-500.0,0.00024657,2]
[312205510,1705685442037,-500.0,0.00024657,2]
[312205512,1705685442045,-500.0,0.00024657,2]
[312205513,1705685442055,-500.0,0.00024657,2]
[312205514,1705685442064,-500.0,0.00024657,2]
[312205515,1705685442073,-540.9645925,0.00024657,2]
[312205516,1705685442082,-500.0,0.00024657,2]
[312205517,1705685442091,-500.0,0.00024657,2]
[312205518,1705685442100,-500.0,0.00024657,2]
[312205519,1705685442109,-500.0,0.00024657,2]
[312205520,1705685442118,-500.0,0.00024657,2]
[312205521,1705685442127,-500.0,0.00024657,2]
[312205523,1705685442136,-511.69871785,0.00024657,2]
[312205525,1705685442146,-500.0,0.00024657,2]
[312205527,1705685442155,-500.0,0.00024657,2]
[312205529,1705685442164,-500.0,0.00024657,2]
[312205531,1705685442174,-500.0,0.00024657,2]
[312205533,1705685442184,-500.0,0.00024657,2]
[312205535,1705685442194,-500.0,0.00024657,2]
[312205537,1705685442203,-500.0,0.00024657,2]
[312205540,1705685442213,-500.0,0.00024657,2]
[312205542,1705685442223,-500.0,0.00024657,2]
[312205544,1705685442232,-500.0,0.00024657,2]